[Event "*** Titled Tuesday Blitz"]
[Site "Chess.com"]
[Date "2019.02.05"]
[Round "10"]
[White "GukeshDommaraju"]
[Black "Last7Samurai"]
[Result "1-0"]
[WhiteElo "2705"]
[BlackElo "2691"]
[TimeControl "180+2"]
[EndTime "15:27:03 PST"]
[Termination "GukeshDommaraju won by resignation"]

1. Nf3 {[%clk 0:03:01.9]} 1... d5 {[%clk 0:02:59.9]} 2. g3 {[%clk 0:03:02.6]}
2... Bg4 {[%clk 0:03:00]} 3. Bg2 {[%clk 0:03:03.3]} 3... Nd7 {[%clk 0:03:01]} 4.
O-O {[%clk 0:03:03.3]} 4... e6 {[%clk 0:03:01.7]} 5. h3 {[%clk 0:03:03.1]} 5...
Bh5 {[%clk 0:03:01.5]} 6. d4 {[%clk 0:03:03.9]} 6... Bd6 {[%clk 0:03:01.9]} 7.
c4 {[%clk 0:03:04.1]} 7... c6 {[%clk 0:03:02.2]} 8. Qb3 {[%clk 0:02:57.1]} 8...
Rb8 {[%clk 0:02:55.4]} 9. Nc3 {[%clk 0:02:54.9]} 9... Ne7 {[%clk 0:02:55.4]} 10.
e4 {[%clk 0:02:55.2]} 10... O-O {[%clk 0:02:49.8]} 11. cxd5 {[%clk 0:02:50.5]}
11... exd5 {[%clk 0:02:37.7]} 12. exd5 {[%clk 0:02:51.1]} 12... cxd5 {[%clk
0:01:54.9]} 13. Nxd5 {[%clk 0:02:50.9]} 13... Nxd5 {[%clk 0:01:55.8]} 14. Qxd5
{[%clk 0:02:51.6]} 14... Nf6 {[%clk 0:01:57.1]} 15. Qb3 {[%clk 0:02:48.5]} 15...
Re8 {[%clk 0:01:54.7]} 16. Be3 {[%clk 0:02:43.7]} 16... Ne4 {[%clk 0:01:47.4]}
17. Rfe1 {[%clk 0:02:13]} 17... Qf6 {[%clk 0:01:47.6]} 18. Ne5 {[%clk
0:02:12.3]} 18... Ng5 {[%clk 0:01:10.1]} 19. f4 {[%clk 0:01:45.5]} 19... Ne6
{[%clk 0:00:53.1]} 20. Nd7 {[%clk 0:01:46.2]} 20... Qg6 {[%clk 0:00:49.2]} 21.
g4 {[%clk 0:01:43.4]} 21... Bxg4 {[%clk 0:00:16]} 22. hxg4 {[%clk 0:01:44.1]}
22... Rbd8 {[%clk 0:00:17.3]} 23. f5 {[%clk 0:01:34.6]} 23... Qxg4 {[%clk
0:00:17.7]} 24. fxe6 {[%clk 0:01:35.6]} 24... Rxe6 {[%clk 0:00:19.6]} 25. Ne5
{[%clk 0:01:36.5]} 25... Bxe5 {[%clk 0:00:18.9]} 26. dxe5 {[%clk 0:01:37.8]}
26... Rg6 {[%clk 0:00:12.9]} 27. Qc2 {[%clk 0:01:34.3]} 27... h5 {[%clk
0:00:14.4]} 28. Rad1 {[%clk 0:01:33.8]} 28... Rc8 {[%clk 0:00:14.3]} 29. Qe2
{[%clk 0:01:25.8]} 29... Qg3 {[%clk 0:00:15.4]} 30. Qf2 {[%clk 0:01:18.2]} 30...
Qg4 {[%clk 0:00:12.6]} 31. Rd4 {[%clk 0:01:15.6]} 31... Qe6 {[%clk 0:00:11.6]}
32. Rd6 {[%clk 0:01:10.5]} 32... Qg4 {[%clk 0:00:10.9]} 33. Rxg6 {[%clk
0:01:11.1]} 33... Qxg6 {[%clk 0:00:12.8]} 34. Rc1 {[%clk 0:01:08.8]} 34... Rd8
{[%clk 0:00:12.8]} 35. Kh2 {[%clk 0:01:01.7]} 1-0

[Event "*** Titled Tuesday Blitz"]
[Site "Chess.com"]
[Date "2019.02.05"]
[Round "10"]
[White "DonPreuss"]
[Black "PowerThinking2650"]
[Result "0-1"]
[WhiteElo "2194"]
[BlackElo "2258"]
[TimeControl "180+2"]
[EndTime "15:27:21 PST"]
[Termination "PowerThinking2650 won by checkmate"]

1. d4 {[%clk 0:03:01.9]} 1... Nf6 {[%clk 0:03:00.3]} 2. Nc3 {[%clk 0:03:02.2]}
2... d5 {[%clk 0:03:00.4]} 3. e4 {[%clk 0:03:03.7]} 3... dxe4 {[%clk 0:03:00.8]}
4. f3 {[%clk 0:03:04.3]} 4... exf3 {[%clk 0:03:00.1]} 5. Nxf3 {[%clk 0:03:05]}
5... e6 {[%clk 0:03:01.3]} 6. Bd3 {[%clk 0:03:05.4]} 6... b6 {[%clk 0:02:57.2]}
7. O-O {[%clk 0:03:05.6]} 7... Bb7 {[%clk 0:02:58.3]} 8. Qe1 {[%clk 0:03:02.8]}
8... Nbd7 {[%clk 0:02:56.5]} 9. Bg5 {[%clk 0:03:03.5]} 9... Be7 {[%clk
0:02:57.3]} 10. Qh4 {[%clk 0:02:52.7]} 10... c5 {[%clk 0:02:40.3]} 11. Bb5
{[%clk 0:02:23.2]} 11... a6 {[%clk 0:02:37.5]} 12. Bd3 {[%clk 0:02:06.8]} 12...
cxd4 {[%clk 0:02:36.2]} 13. Ne2 {[%clk 0:02:03.5]} 13... Nd5 {[%clk 0:02:19.1]}
14. Qh5 {[%clk 0:01:44.5]} 14... N5f6 {[%clk 0:02:15.4]} 15. Qh4 {[%clk
0:01:44.5]} 15... e5 {[%clk 0:02:16.2]} 16. Ng3 {[%clk 0:01:41.7]} 16... e4
{[%clk 0:02:09.8]} 17. Nf5 {[%clk 0:01:42.3]} 17... Kf8 {[%clk 0:01:21.1]} 18.
Nxg7 {[%clk 0:01:25.9]} 18... exf3 {[%clk 0:00:28.7]} 19. Qh6 {[%clk 0:01:01.6]}
19... Ng8 {[%clk 0:00:23.1]} 20. Ne6+ {[%clk 0:00:54.5]} 20... Ke8 {[%clk
0:00:24.1]} 21. Ng7+ {[%clk 0:00:37.3]} 21... Kf8 {[%clk 0:00:24.7]} 22. Ne6+
{[%clk 0:00:27.5]} 22... Ke8 {[%clk 0:00:25.6]} 23. Qg7 {[%clk 0:00:14.5]} 23...
fxe6 {[%clk 0:00:25.7]} 24. Qxh8 {[%clk 0:00:13.5]} 24... Bxg5 {[%clk
0:00:21.3]} 25. Qxg8+ {[%clk 0:00:14.5]} 25... Nf8 {[%clk 0:00:22.8]} 26. Bxh7
{[%clk 0:00:13.5]} 26... Be7 {[%clk 0:00:21.4]} 27. Rfe1 {[%clk 0:00:11.7]}
27... Kd7 {[%clk 0:00:21]} 28. gxf3 {[%clk 0:00:10.1]} 28... Nxh7 {[%clk
0:00:21.1]} 29. Qxh7 {[%clk 0:00:10.2]} 29... Qg8+ {[%clk 0:00:21.4]} 30. Qxg8
{[%clk 0:00:11.7]} 30... Rxg8+ {[%clk 0:00:22.7]} 31. Kh1 {[%clk 0:00:13.2]}
31... Bxf3# {[%clk 0:00:22.7]} 0-1

[Event "*** Titled Tuesday Blitz"]
[Site "Chess.com"]
[Date "2019.02.05"]
[Round "10"]
[White "Romn69"]
[Black "RiskyDecision"]
[Result "0-1"]
[WhiteElo "2238"]
[BlackElo "2404"]
[TimeControl "180+2"]
[EndTime "15:27:44 PST"]
[Termination "RiskyDecision won on time"]

1. d4 {[%clk 0:03:01.9]} 1... Nf6 {[%clk 0:03:00]} 2. Nf3 {[%clk 0:02:45.9]}
2... d5 {[%clk 0:03:00.4]} 3. c4 {[%clk 0:02:46.5]} 3... e6 {[%clk 0:02:59.7]}
4. g3 {[%clk 0:02:46.7]} 4... dxc4 {[%clk 0:02:59.1]} 5. Bg2 {[%clk 0:02:46.9]}
5... Bd7 {[%clk 0:03:00.6]} 6. Ne5 {[%clk 0:02:46.6]} 6... Bc6 {[%clk
0:02:58.9]} 7. Nxc6 {[%clk 0:02:47.3]} 7... Nxc6 {[%clk 0:03:00.2]} 8. e3 {[%clk
0:02:48.1]} 8... Qd7 {[%clk 0:02:59.5]} 9. Qe2 {[%clk 0:02:46]} 9... e5 {[%clk
0:02:47.4]} 10. Qxc4 {[%clk 0:02:33.5]} 10... exd4 {[%clk 0:02:42.6]} 11. exd4
{[%clk 0:02:33.7]} 11... Nxd4 {[%clk 0:02:27.7]} 12. O-O {[%clk 0:02:33.2]}
12... Be7 {[%clk 0:02:20.5]} 13. Nc3 {[%clk 0:02:28.2]} 13... O-O {[%clk
0:02:15.6]} 14. Bxb7 {[%clk 0:02:17.8]} 14... Rab8 {[%clk 0:02:14.6]} 15. Bg2
{[%clk 0:02:17.3]} 15... c5 {[%clk 0:01:49]} 16. Rb1 {[%clk 0:02:03.1]} 16...
Qg4 {[%clk 0:01:47.2]} 17. Qd3 {[%clk 0:01:33.2]} 17... Rfd8 {[%clk 0:01:47.4]}
18. h3 {[%clk 0:01:25.1]} 18... Qh5 {[%clk 0:01:32.5]} 19. Bf4 {[%clk
0:01:02.1]} 19... Ne6 {[%clk 0:01:26.5]} 20. Qe3 {[%clk 0:00:49.1]} 20... Nxf4
{[%clk 0:01:26.8]} 21. Qxf4 {[%clk 0:00:49.7]} 21... Bd6 {[%clk 0:01:24.6]} 22.
Qf3 {[%clk 0:00:47.7]} 22... Qxf3 {[%clk 0:01:21.6]} 23. Bxf3 {[%clk 0:00:47.8]}
23... Be5 {[%clk 0:01:23]} 24. Rfc1 {[%clk 0:00:36.7]} 24... Rd2 {[%clk
0:01:22.9]} 25. Na4 {[%clk 0:00:22]} 25... Bd4 {[%clk 0:01:16.9]} 26. Rf1 {[%clk
0:00:15.7]} 26... Rb4 {[%clk 0:01:06.1]} 27. Nc3 {[%clk 0:00:05.9]} 27... Rbxb2
{[%clk 0:01:01.9]} 28. Rxb2 {[%clk 0:00:05.3]} 28... Rxb2 {[%clk 0:01:03.3]} 29.
Nd5 {[%clk 0:00:05]} 29... Rxa2 {[%clk 0:00:56.9]} 30. Ne7+ {[%clk 0:00:05.2]}
30... Kf8 {[%clk 0:00:56.8]} 31. Nc6 {[%clk 0:00:07.1]} 31... g6 {[%clk
0:00:52.1]} 32. Nxd4 {[%clk 0:00:06.9]} 32... cxd4 {[%clk 0:00:53]} 33. Rd1
{[%clk 0:00:08.1]} 33... Ra4 {[%clk 0:00:53.2]} 34. Kf1 {[%clk 0:00:08.3]} 34...
Ke7 {[%clk 0:00:48.9]} 35. Ke2 {[%clk 0:00:08.8]} 35... Kd6 {[%clk 0:00:50]} 36.
Rb1 {[%clk 0:00:08]} 36... Ra2+ {[%clk 0:00:44.8]} 37. Ke1 {[%clk 0:00:06.5]}
37... Nd5 {[%clk 0:00:42.6]} 0-1

[Event "*** Titled Tuesday Blitz"]
[Site "Chess.com"]
[Date "2019.02.05"]
[Round "10"]
[White "StoreySniper"]
[Black "nocnypako"]
[Result "1-0"]
[WhiteElo "2327"]
[BlackElo "2224"]
[TimeControl "180+2"]
[EndTime "15:27:48 PST"]
[Termination "StoreySniper won on time"]

1. e4 {[%clk 0:03:01.9]} 1... e6 {[%clk 0:02:59.7]} 2. c4 {[%clk 0:02:58.5]}
2... b6 {[%clk 0:02:46.4]} 3. d4 {[%clk 0:02:58.2]} 3... Bb7 {[%clk 0:02:47.4]}
4. Bd3 {[%clk 0:02:59.2]} 4... g6 {[%clk 0:02:42.1]} 5. Nc3 {[%clk 0:02:57.5]}
5... Bg7 {[%clk 0:02:43.5]} 6. Nge2 {[%clk 0:02:58.4]} 6... Ne7 {[%clk
0:02:44.6]} 7. d5 {[%clk 0:02:55.4]} 7... O-O {[%clk 0:02:45.5]} 8. h4 {[%clk
0:02:55.1]} 8... f5 {[%clk 0:02:44.2]} 9. h5 {[%clk 0:02:54.1]} 9... e5 {[%clk
0:02:36.9]} 10. Bg5 {[%clk 0:02:44.5]} 10... f4 {[%clk 0:02:33.6]} 11. hxg6
{[%clk 0:02:35.1]} 11... hxg6 {[%clk 0:02:33.1]} 12. c5 {[%clk 0:02:30.7]} 12...
d6 {[%clk 0:02:27.4]} 13. c6 {[%clk 0:02:30.7]} 13... Bc8 {[%clk 0:02:25.2]} 14.
Ng1 {[%clk 0:02:27.4]} 14... Qe8 {[%clk 0:02:16.2]} 15. Be2 {[%clk 0:02:26.9]}
15... Na6 {[%clk 0:02:02]} 16. Bg4 {[%clk 0:02:21.9]} 16... Qf7 {[%clk
0:01:57.5]} 17. Bxc8 {[%clk 0:02:14.7]} 17... Raxc8 {[%clk 0:01:59.4]} 18. Qg4
{[%clk 0:02:08.5]} 18... Bf6 {[%clk 0:01:56.8]} 19. Nf3 {[%clk 0:02:07.5]} 19...
Nc5 {[%clk 0:01:50.9]} 20. O-O-O {[%clk 0:02:07.2]} 20... b5 {[%clk 0:01:39.6]}
21. b4 {[%clk 0:01:53.5]} 21... Na4 {[%clk 0:01:39.5]} 22. Nxb5 {[%clk 0:00:42]}
22... a6 {[%clk 0:01:38.1]} 23. Bxf6 {[%clk 0:00:21.3]} 23... Qxf6 {[%clk
0:01:36.6]} 24. Na3 {[%clk 0:00:21.1]} 24... Nc3 {[%clk 0:01:35.4]} 25. Ng5
{[%clk 0:00:19.8]} 25... f3 {[%clk 0:01:01.1]} 26. gxf3 {[%clk 0:00:19.1]} 26...
Nxd1 {[%clk 0:00:59.4]} 27. Kxd1 {[%clk 0:00:19]} 27... Rfe8 {[%clk 0:00:19.1]}
28. Nc2 {[%clk 0:00:18.7]} 28... Nxd5 {[%clk 0:00:10.2]} 29. exd5 {[%clk
0:00:18.9]} 29... e4 {[%clk 0:00:11.2]} 30. Nxe4 {[%clk 0:00:18.9]} 30... Qf5
{[%clk 0:00:12.4]} 31. Qxf5 {[%clk 0:00:19]} 31... gxf5 {[%clk 0:00:14.3]} 32.
Nf6+ {[%clk 0:00:20.1]} 1-0

[Event "*** Titled Tuesday Blitz"]
[Site "Chess.com"]
[Date "2019.02.05"]
[Round "10"]
[White "vovachesss"]
[Black "metra93"]
[Result "0-1"]
[WhiteElo "2579"]
[BlackElo "2578"]
[TimeControl "180+2"]
[EndTime "15:27:53 PST"]
[Termination "metra93 won on time"]

1. Nc3 {[%clk 0:03:01.9]} 1... d5 {[%clk 0:02:58.8]} 2. e4 {[%clk 0:03:00.8]}
2... e6 {[%clk 0:02:57.1]} 3. d4 {[%clk 0:02:59]} 3... Bb4 {[%clk 0:02:57.5]} 4.
exd5 {[%clk 0:02:59.1]} 4... exd5 {[%clk 0:02:58.2]} 5. Bd3 {[%clk 0:03:00.5]}
5... Nc6 {[%clk 0:02:58.2]} 6. Ne2 {[%clk 0:03:01.6]} 6... Nge7 {[%clk
0:02:57.3]} 7. O-O {[%clk 0:02:59.7]} 7... Bf5 {[%clk 0:02:54.2]} 8. a3 {[%clk
0:03:00.1]} 8... Ba5 {[%clk 0:02:51.7]} 9. Ng3 {[%clk 0:02:23.7]} 9... Bxd3
{[%clk 0:02:43.4]} 10. Qxd3 {[%clk 0:02:24.7]} 10... Bxc3 {[%clk 0:02:41.9]} 11.
Qxc3 {[%clk 0:02:17.7]} 11... O-O {[%clk 0:02:37.2]} 12. Qd3 {[%clk 0:02:07.5]}
12... Qd7 {[%clk 0:02:32]} 13. Re1 {[%clk 0:02:04.5]} 13... Rae8 {[%clk
0:02:32.2]} 14. Bd2 {[%clk 0:02:00.8]} 14... Nc8 {[%clk 0:02:27.9]} 15. Nh5
{[%clk 0:01:29]} 15... Qg4 {[%clk 0:02:09.2]} 16. Nf4 {[%clk 0:01:29.5]} 16...
Nb6 {[%clk 0:01:53.4]} 17. h3 {[%clk 0:01:27]} 17... Qd7 {[%clk 0:01:48.8]} 18.
Nh5 {[%clk 0:01:22.3]} 18... f6 {[%clk 0:01:46.1]} 19. b3 {[%clk 0:01:14.3]}
19... Nc8 {[%clk 0:01:43.1]} 20. Nf4 {[%clk 0:01:02.1]} 20... Nb6 {[%clk
0:01:31.9]} 21. a4 {[%clk 0:00:52.8]} 21... Nd8 {[%clk 0:01:22.1]} 22. a5 {[%clk
0:00:49.7]} 22... Nc8 {[%clk 0:01:23.1]} 23. Bb4 {[%clk 0:00:45.5]} 23... Rxe1+
{[%clk 0:01:03.6]} 24. Rxe1 {[%clk 0:00:47.4]} 24... Rf7 {[%clk 0:01:04.7]} 25.
Nxd5 {[%clk 0:00:38]} 25... Nc6 {[%clk 0:01:02.4]} 26. Ba3 {[%clk 0:00:23.4]}
26... Nxa5 {[%clk 0:00:58.5]} 27. Qe4 {[%clk 0:00:11.4]} 27... h5 {[%clk
0:00:57.7]} 28. Qe8+ {[%clk 0:00:11.2]} 28... Qxe8 {[%clk 0:00:58.6]} 29. Rxe8+
{[%clk 0:00:12]} 29... Kh7 {[%clk 0:00:58.3]} 30. Rxc8 {[%clk 0:00:13.6]} 30...
Rd7 {[%clk 0:00:59]} 31. c4 {[%clk 0:00:12.8]} 31... c6 {[%clk 0:00:56.8]} 32.
Ne7 {[%clk 0:00:07.5]} 32... Nxb3 {[%clk 0:00:53.5]} 33. f4 {[%clk 0:00:07.8]}
33... c5 {[%clk 0:00:52.2]} 34. Nd5 {[%clk 0:00:04.3]} 34... cxd4 {[%clk
0:00:50]} 35. Kf2 {[%clk 0:00:05.9]} 35... b5 {[%clk 0:00:50]} 36. Nb4 {[%clk
0:00:04.2]} 36... d3 {[%clk 0:00:48.5]} 37. Nxd3 {[%clk 0:00:03.2]} 37... Rxd3
{[%clk 0:00:50.4]} 38. cxb5 {[%clk 0:00:04.6]} 38... Nd4 {[%clk 0:00:51.5]} 39.
Bf8 {[%clk 0:00:05.1]} 39... Nxb5 {[%clk 0:00:51]} 40. Rb8 {[%clk 0:00:05.5]}
40... Nd6 {[%clk 0:00:46.8]} 41. Rd8 {[%clk 0:00:05.7]} 41... Ne4+ {[%clk
0:00:46.8]} 42. Ke2 {[%clk 0:00:05.6]} 42... Rxd8 {[%clk 0:00:48.7]} 0-1

[Event "*** Titled Tuesday Blitz"]
[Site "Chess.com"]
[Date "2019.02.05"]
[Round "10"]
[White "StanislavNovikov"]
[Black "GM_dmitrij"]
[Result "0-1"]
[WhiteElo "2679"]
[BlackElo "2781"]
[TimeControl "180+2"]
[EndTime "15:28:01 PST"]
[Termination "GM_dmitrij won on time"]

1. g3 {[%clk 0:03:01.9]} 1... e5 {[%clk 0:03:00.8]} 2. Bg2 {[%clk 0:03:03.2]}
2... d5 {[%clk 0:03:01.4]} 3. c3 {[%clk 0:03:04.4]} 3... Nf6 {[%clk 0:02:56.3]}
4. d3 {[%clk 0:03:02.2]} 4... Bd6 {[%clk 0:02:53.8]} 5. Nd2 {[%clk 0:03:01.8]}
5... O-O {[%clk 0:02:53.8]} 6. Qc2 {[%clk 0:03:02.8]} 6... a5 {[%clk 0:02:53.3]}
7. Ngf3 {[%clk 0:03:02.1]} 7... Re8 {[%clk 0:02:49.8]} 8. e4 {[%clk 0:03:02.4]}
8... Na6 {[%clk 0:02:48.2]} 9. O-O {[%clk 0:03:02]} 9... c6 {[%clk 0:02:43.7]}
10. Re1 {[%clk 0:03:02.5]} 10... Nc5 {[%clk 0:02:40.5]} 11. b3 {[%clk
0:02:43.3]} 11... Bc7 {[%clk 0:02:26.2]} 12. Bf1 {[%clk 0:02:43.4]} 12... Bg4
{[%clk 0:02:24.1]} 13. Bb2 {[%clk 0:02:39.4]} 13... a4 {[%clk 0:02:14]} 14. b4
{[%clk 0:02:36.8]} 14... a3 {[%clk 0:01:59.7]} 15. bxc5 {[%clk 0:02:24.6]} 15...
axb2 {[%clk 0:02:01.6]} 16. Qxb2 {[%clk 0:02:26.1]} 16... dxe4 {[%clk
0:02:01.4]} 17. dxe4 {[%clk 0:02:24]} 17... Ra7 {[%clk 0:02:01.4]} 18. h3 {[%clk
0:02:15.2]} 18... Bxf3 {[%clk 0:01:55.5]} 19. Nxf3 {[%clk 0:02:17.1]} 19... Qe7
{[%clk 0:01:57.2]} 20. Qb4 {[%clk 0:02:09.7]} 20... Nd7 {[%clk 0:01:57.3]} 21.
Nd2 {[%clk 0:01:43.5]} 21... Ba5 {[%clk 0:01:53.5]} 22. Qb2 {[%clk 0:01:36.2]}
22... Nxc5 {[%clk 0:01:52.5]} 23. Qc2 {[%clk 0:01:35.7]} 23... b5 {[%clk
0:01:47.5]} 24. Red1 {[%clk 0:01:28.1]} 24... Bb6 {[%clk 0:01:42.8]} 25. Nb3
{[%clk 0:01:24.1]} 25... Ne6 {[%clk 0:01:30.8]} 26. h4 {[%clk 0:01:12.4]} 26...
Rea8 {[%clk 0:01:20.5]} 27. Rd2 {[%clk 0:01:09.4]} 27... g6 {[%clk 0:01:08.9]}
28. Qd1 {[%clk 0:00:55]} 28... Nc5 {[%clk 0:01:05]} 29. Nxc5 {[%clk 0:00:28.5]}
29... Qxc5 {[%clk 0:01:06.9]} 30. Qf3 {[%clk 0:00:26.8]} 30... Ra3 {[%clk
0:00:43]} 31. Rd7 {[%clk 0:00:26.5]} 31... Rf8 {[%clk 0:00:41.1]} 32. Rd3 {[%clk
0:00:20.6]} 32... f5 {[%clk 0:00:30.8]} 33. Qe2 {[%clk 0:00:06.8]} 33... fxe4
{[%clk 0:00:26.4]} 34. Re3 {[%clk 0:00:07.1]} 34... Rxc3 {[%clk 0:00:26.4]} 35.
Rxc3 {[%clk 0:00:02.7]} 35... Qxc3 {[%clk 0:00:27.1]} 36. Qxe4 {[%clk
0:00:02.8]} 36... Bxf2+ {[%clk 0:00:21.6]} 37. Kg2 {[%clk 0:00:02]} 37... Qxg3+
{[%clk 0:00:22.2]} 0-1

[Event "*** Titled Tuesday Blitz"]
[Site "Chess.com"]
[Date "2019.02.05"]
[Round "10"]
[White "GMMatamoros"]
[Black "2165149677570"]
[Result "1-0"]
[WhiteElo "2501"]
[BlackElo "2317"]
[TimeControl "180+2"]
[EndTime "15:28:01 PST"]
[Termination "GMMatamoros won by resignation"]

1. Nf3 {[%clk 0:03:01.9]} 1... c5 {[%clk 0:02:58.9]} 2. c4 {[%clk 0:03:01.6]}
2... Nc6 {[%clk 0:03:00]} 3. g3 {[%clk 0:03:00.2]} 3... g6 {[%clk 0:03:00.5]} 4.
Bg2 {[%clk 0:03:01.2]} 4... Bg7 {[%clk 0:03:01.7]} 5. Nc3 {[%clk 0:03:02.1]}
5... e5 {[%clk 0:02:56.2]} 6. a3 {[%clk 0:02:59.4]} 6... Nge7 {[%clk 0:02:57.1]}
7. b4 {[%clk 0:02:59.1]} 7... d6 {[%clk 0:02:58.1]} 8. Rb1 {[%clk 0:02:58.1]}
8... O-O {[%clk 0:02:49.9]} 9. O-O {[%clk 0:02:56.7]} 9... Be6 {[%clk 0:02:50]}
10. d3 {[%clk 0:02:56.8]} 10... h6 {[%clk 0:02:51]} 11. bxc5 {[%clk 0:02:57.2]}
11... dxc5 {[%clk 0:02:52.1]} 12. Rxb7 {[%clk 0:02:58.3]} 12... Rb8 {[%clk
0:02:49.5]} 13. Rb5 {[%clk 0:02:54]} 13... Nd4 {[%clk 0:02:47.3]} 14. Rxc5
{[%clk 0:02:27]} 14... Qd6 {[%clk 0:02:45]} 15. Ne4 {[%clk 0:02:12.8]} 15... Qa6
{[%clk 0:02:42.6]} 16. Nxd4 {[%clk 0:02:10.7]} 16... exd4 {[%clk 0:02:40.2]} 17.
Bd2 {[%clk 0:02:04.8]} 17... Qxa3 {[%clk 0:02:35.8]} 18. Ra5 {[%clk 0:02:04.8]}
18... Qb2 {[%clk 0:02:34.6]} 19. Rxa7 {[%clk 0:01:58.6]} 19... Nc6 {[%clk
0:02:35.4]} 20. Ra6 {[%clk 0:01:56.5]} 20... Nb4 {[%clk 0:02:36.1]} 21. Ra4
{[%clk 0:01:40.5]} 21... Na2 {[%clk 0:02:29.2]} 22. Qa1 {[%clk 0:01:14.9]} 22...
Nc3 {[%clk 0:02:14.9]} 23. Bxc3 {[%clk 0:00:39.9]} 23... dxc3 {[%clk 0:02:14.6]}
24. Ra2 {[%clk 0:00:37.8]} 24... Qxa1 {[%clk 0:02:04.5]} 25. Raxa1 {[%clk
0:00:38.8]} 25... Rb2 {[%clk 0:02:01.6]} 26. Rac1 {[%clk 0:00:21.3]} 26... c2
{[%clk 0:01:59.9]} 27. e3 {[%clk 0:00:19.7]} 27... Ra8 {[%clk 0:01:56.5]} 28.
Nf6+ {[%clk 0:00:16.5]} 28... Bxf6 {[%clk 0:01:55.7]} 29. Bxa8 {[%clk
0:00:17.8]} 29... Bc3 {[%clk 0:01:57]} 30. Be4 {[%clk 0:00:08.5]} 30... Bd2
{[%clk 0:01:57.1]} 31. Kg2 {[%clk 0:00:09.6]} 31... f5 {[%clk 0:01:49.4]} 32.
Bd5 {[%clk 0:00:10.2]} 32... Bxd5+ {[%clk 0:01:50.5]} 33. cxd5 {[%clk
0:00:12.1]} 33... Kf7 {[%clk 0:01:50.2]} 34. Kf3 {[%clk 0:00:13.1]} 34... Ke7
{[%clk 0:01:48.8]} 35. Ke2 {[%clk 0:00:14.1]} 35... Bxc1 {[%clk 0:01:40.8]} 36.
Rxc1 {[%clk 0:00:16]} 36... Kd6 {[%clk 0:01:39]} 37. Kd2 {[%clk 0:00:17.1]}
37... Kxd5 {[%clk 0:01:34.8]} 38. Rxc2 {[%clk 0:00:17.9]} 38... Rb1 {[%clk
0:01:28.3]} 39. Ra2 {[%clk 0:00:18.8]} 39... Rh1 {[%clk 0:00:53.6]} 40. h4
{[%clk 0:00:19.4]} 40... g5 {[%clk 0:00:44.9]} 41. Ra5+ {[%clk 0:00:17.1]} 41...
Ke6 {[%clk 0:00:43.1]} 42. Ra6+ {[%clk 0:00:18.1]} 1-0

[Event "*** Titled Tuesday Blitz"]
[Site "Chess.com"]
[Date "2019.02.05"]
[Round "10"]
[White "Witik"]
[Black "ChessWarrior7197"]
[Result "1/2-1/2"]
[WhiteElo "2651"]
[BlackElo "2866"]
[TimeControl "180+2"]
[EndTime "15:28:03 PST"]
[Termination "Game drawn by agreement"]

1. d4 {[%clk 0:03:01.9]} 1... Nf6 {[%clk 0:02:58.5]} 2. c4 {[%clk 0:03:02.5]}
2... e6 {[%clk 0:02:58]} 3. Nf3 {[%clk 0:03:03.1]} 3... b6 {[%clk 0:02:53.4]} 4.
g3 {[%clk 0:03:03.7]} 4... Bb7 {[%clk 0:02:54.1]} 5. Bg2 {[%clk 0:03:04.4]} 5...
Be7 {[%clk 0:02:56]} 6. O-O {[%clk 0:03:05.7]} 6... O-O {[%clk 0:02:57.1]} 7. d5
{[%clk 0:03:06.8]} 7... Na6 {[%clk 0:02:56.8]} 8. Nc3 {[%clk 0:03:02.3]} 8...
Bb4 {[%clk 0:02:56.4]} 9. Bd2 {[%clk 0:03:02.6]} 9... Nc5 {[%clk 0:02:52.2]} 10.
Nd4 {[%clk 0:02:55.8]} 10... Bxc3 {[%clk 0:02:49.3]} 11. Bxc3 {[%clk 0:02:56.6]}
11... exd5 {[%clk 0:02:43.7]} 12. Nf5 {[%clk 0:02:57.4]} 12... Nce4 {[%clk
0:02:39.9]} 13. Bxe4 {[%clk 0:02:13.1]} 13... dxe4 {[%clk 0:02:39.6]} 14. Qd2
{[%clk 0:02:05]} 14... Ne8 {[%clk 0:02:17.1]} 15. Qf4 {[%clk 0:01:50.8]} 15...
f6 {[%clk 0:02:16.6]} 16. Rad1 {[%clk 0:01:47.8]} 16... d6 {[%clk 0:02:16.7]}
17. h4 {[%clk 0:01:46.1]} 17... Qd7 {[%clk 0:02:14.2]} 18. h5 {[%clk 0:01:43.7]}
18... Qe6 {[%clk 0:02:00.9]} 19. b3 {[%clk 0:01:41.3]} 19... Rd8 {[%clk
0:01:58.3]} 20. g4 {[%clk 0:01:36.2]} 20... Rd7 {[%clk 0:01:57.9]} 21. f3 {[%clk
0:01:30.8]} 21... c5 {[%clk 0:01:51.1]} 22. Kh2 {[%clk 0:01:28.9]} 22... Bc6
{[%clk 0:01:47.1]} 23. Rg1 {[%clk 0:01:23.2]} 23... exf3 {[%clk 0:01:44.8]} 24.
exf3 {[%clk 0:01:14.2]} 24... Qe2+ {[%clk 0:01:44.5]} 25. Kg3 {[%clk 0:01:15.4]}
25... Qxa2 {[%clk 0:01:37.4]} 26. Rge1 {[%clk 0:01:15.7]} 26... Qxb3 {[%clk
0:01:37.3]} 27. Rd3 {[%clk 0:01:04.4]} 27... Qc2 {[%clk 0:01:26.6]} 28. Rde3
{[%clk 0:01:02.9]} 28... Nc7 {[%clk 0:01:26]} 29. Ne7+ {[%clk 0:00:48.9]} 29...
Rxe7 {[%clk 0:01:22.5]} 30. Rxe7 {[%clk 0:00:49.7]} 30... Qxc3 {[%clk
0:01:08.3]} 31. R1e3 {[%clk 0:00:29]} 31... Qa1 {[%clk 0:00:56]} 32. Rxc7 {[%clk
0:00:23]} 32... Qg1+ {[%clk 0:00:55.9]} 33. Kh3 {[%clk 0:00:23.4]} 33... Qh1+
{[%clk 0:00:57]} 34. Kg3 {[%clk 0:00:23.2]} 34... Qg1+ {[%clk 0:00:55.5]} 35.
Kh3 {[%clk 0:00:23.8]} 35... Qf1+ {[%clk 0:00:56.8]} 36. Kg3 {[%clk 0:00:22.7]}
36... Be8 {[%clk 0:00:54.4]} 37. Ree7 {[%clk 0:00:20.5]} 37... Bf7 {[%clk
0:00:53.3]} 38. Qe3 {[%clk 0:00:17.6]} 38... Qxc4 {[%clk 0:00:51.9]} 39. h6
{[%clk 0:00:18.6]} 39... gxh6 {[%clk 0:00:47]} 40. Qxh6 {[%clk 0:00:16.9]} 40...
Qf1 {[%clk 0:00:30.3]} 41. Qxf8+ {[%clk 0:00:15.1]} 1/2-1/2